Cogmind - Beta 12 @@@ ROGUE MODE // 2023.03.12 @ 20:19:04 Player: Momo Result: Destroyed by 8R-AWN with 8R-AWN's Boregun Performance ------------- Evolutions (1) 500 Regions Visited (5) 1000 Robots Destroyed (16) 80 Value Destroyed (494) 494 Prototype IDs (4) 80 Alien Tech Used (0) 0 Bonus (520) 520 TOTAL SCORE: 2674 Bonus ------- High Alert Combat Kills 11 Follower Combat Kills 209 Aligned with FarCom 300 Cogmind --------- Core Integrity 0/400 Matter 175/300 Energy 100/100 System Corruption 7% Temperature Cool (0) Movement Treading (245) Ox1 Location -9/Exiles Parts ------- > --- POWER (1) -------- (None) > --- PROPULSION (4) --- Light Treads Armored Treads > --- UTILITY (2) ------ High-capacity Storage Unit Hardened Light Armor Plating > --- WEAPON (2) ------- AWS/Gauss > --- INVENTORY (20) --- Ion Engine Huge Storage Unit Light Armor Plating Medium Armor Plating Guided Plasma Cannon Improved Assault Rifle High-powered Shotgun EMP Blaster Field Lobotomy Kit (5) Heavy Flail Heavy Flail Blade Trap Peak State ------------ > --- POWER ------------ Light Angular Momentum Engine > --- PROPULSION ------- Light Treads Armored Treads Wheel Wheel > --- UTILITY ---------- High-capacity Storage Unit Melee Analysis Suite > --- WEAPON ----------- AWS/Gauss > --- INVENTORY -------- Ion Engine Huge Storage Unit Light Armor Plating Medium Armor Plating Hardened Light Armor Plating Guided Plasma Cannon Improved Assault Rifle High-powered Shotgun EMP Blaster Field Lobotomy Kit Heavy Flail Heavy Flail Blade Trap [Rating: 35] Favorites ----------- Power Ion Engine Engine Ion Engine Propulsion Wheel Treads Light Treads Wheel Wheel Utility High-capacity Storage Unit Storage High-capacity Storage Unit Processor Melee Analysis Suite Protection Hardened Light Armor Plating Weapon Heavy Flail Energy Gun Small Laser Energy Cannon Guided Plasma Cannon Ballistic Gun Assault Rifle Launcher Grenade Launcher Special Weapon Field Lobotomy Kit Impact Weapon Heavy Flail Build | -11 -10 -10 -9 -9 -9 ------- Run | Jun Mat Min Mat Min Exi Slots Evolved 2 | . . . 2 . . Power . | . . . . . . Propulsion 2 | . . . 2 . . Utility . | . . . . . . Weapon . | . . . . . . Parts Attached 27 | 6 1 3 6 1 10 Power 3 | 1 1 . . . 1 Engine 3 | 1 1 . . . 1 Core . | . . . . . . Reactor . | . . . . . . Propulsion 10 | 2 . . 4 1 3 Treads 5 | . . . 3 . 2 Leg . | . . . . . . Wheel 5 | 2 . . 1 1 1 Hover . | . . . . . . Flight . | . . . . . . Utility 4 | 1 . 2 . . 1 Device . | . . . . . . Storage 2 | 1 . 1 . . . Processor 1 | . . 1 . . . Hackware . | . . . . . . Protection 1 | . . . . . 1 Artifact . | . . . . . . Weapon 10 | 2 . 1 2 . 5 Energy Gun 1 | 1 . . . . . Energy Cannon 1 | . . . . . 1 Ballistic Gun 5 | 1 . . 2 . 2 Ballistic Cannon . | . . . . . . Launcher 1 | . . . . . 1 Special Weapon 1 | . . . . . 1 Impact Weapon 1 | . . 1 . . . Slashing Weapon . | . . . . . . Piercing Weapon . | . . . . . . Special Melee Weapon . | . . . . . . Unidentified Prototypes 4 | . . . 1 . 3 Corrupted Parts 3 | . . 2 . . 1 System Corruption 7 | . . 5 . . 2 Parts Lost 13 | . 1 . 5 . 7 Power 3 | . 1 . . . 2 Propulsion 7 | . . . 3 . 4 Utility . | . . . . . . Weapon 3 | . . . 2 . 1 Highest Loss Streak 7 | . 1 . 1 . 7 To Critical Strikes 1 | . . . . . 1 Average Slot Usage (%) 91 | . 84 98 89 88 89 Engine 12 | . 13 14 11 11 10 Treads 9 | . . . 19 22 17 Wheel 22 | . 28 28 14 11 23 Storage 12 | . 14 14 11 11 11 Processor 9 | . . 12 11 11 9 Energy Gun 2 | . 14 . . . . Ballistic Gun 11 | . 14 14 11 11 6 Impact Weapon 8 | . . 13 11 11 5 Naked Turns . | . . . . . . Heaviest Build 64 | 11 13 50 51 51 64 Greatest Support 62 | 26 26 26 62 40 40 Greatest Overweight (x) 4 | . . 1 4 2 2 Average Overweight (x) . | . . . . 1 1 Largest Inventory Capacity 20 | 8 8 20 20 20 20 Average Capacity 17 | 7 8 19 20 20 20 Most Carried 20 | 2 8 17 20 20 20 Average Carried 14 | . 3 15 18 19 18 Final Capacity 20 | 8 8 20 20 20 20 Final Carried 20 | 2 8 17 20 19 12 Class Distribution -------------------- 100% | Mutant Dominant Class ---------------- Mutant | -10/Materials Mutant | -10/Mines Mutant | -9/Materials Mutant | -9/Mines Mutant | -9/Exiles Resources | -11 -10 -10 -9 -9 -9 ----------- Run | Jun Mat Min Mat Min Exi Matter Collected 492 | 185 128 52 127 . . Remotely . | . . . . . . Salvage Created 609 | . 141 83 357 . 28 Parts 24 | . 6 . 18 . . Haulers Intercepted . | . . . . . . Recyclers Shooed . | . . . . . . Parts Field Recycled . | . . . . . . Retrieved Matter . | . . . . . . Parts Self-Destructed . | . . . . . . Prevented . | . . . . . . Kills | -11 -10 -10 -9 -9 -9 ------- Run | Jun Mat Min Mat Min Exi Combat Hostiles Destroyed 18 | . 3 2 8 . 5 Melee 3 | . . . 3 . . Guns 5 | . 3 . 2 . . AOE 5 | . . . . . 5 Classes Destroyed 7 | . 2 . 4 . 1 Worker 1 | . . . 1 . . Mechanic 1 | . 1 . . . . Watcher 1 | . . . 1 . . Swarmer 1 | . . . 1 . . Grunt 9 | . 3 2 4 . . Sentry 3 | . . . 3 . . Assembled 5 | . . . . . 5 Best Kill Streak 5 | . 2 2 4 . 5 Combat Bots Only 5 | . 2 2 3 . 5 Max Kills in Single Turn 4 | . 1 1 1 . 4 Gunslinging . | . . . . . . Exploded 4 | . . . . . 4 Melee 1 | . . . 1 . . Uniques/NPCs Destroyed . | . . . . . . Combat | -11 -10 -10 -9 -9 -9 -------- Run | Jun Mat Min Mat Min Exi Damage Taken 1932 | . 143 59 611 . 1119 Core 445 | . 22 17 149 . 257 Absorbed by Shields . | . . . . . . Core Remaining (%) 92 | 100 . 84 . . . Volleys Fired 41 | . 16 . 20 . 5 Largest 2 | . 2 . 1 . 1 Hottest 60 | . 60 . 20 . 30 Shots Fired 56 | . 31 . 20 . 5 Gun 51 | . 31 . 20 . . Cannon . | . . . . . . Launcher 5 | . . . . . 5 Special . | . . . . . . Kinetic 36 | . 16 . 20 . . Thermal 15 | . 15 . . . . Explosive 5 | . . . . . 5 Electromagnetic . | . . . . . . Robot Hit Streak 9 | . 9 . 8 . 1 Robot Miss Streak 4 | . 2 . 4 . 2 Penetration Max . | . . . . . . Secondary Targets 1 | . 1 . . . . Max Gunslinging Chain 1 | . 1 . . . . Shots Hit Robots 59 | . 22 3 32 . 2 Core Hits 32 | . 10 . 8 . 14 Critical Kills 2 | . . . 2 . . Critical Parts Destroyed 3 | . 1 1 1 . . Critical Strikes 5 | . 1 1 3 . . Destroy 1 | . 1 . . . . Smash 4 | . . 1 3 . . Melee Attacks 29 | . . 3 26 . . Impact 29 | . . 3 26 . . Slashing . | . . . . . . Piercing . | . . . . . . Sneak Attacks 1 | . . . 1 . . Combat Hostiles . | . . . . . . Follow-up Attacks . | . . . . . . Damage Inflicted 1806 | . 247 159 1126 . 274 Guns 379 | . 247 . 132 . . Cannons . | . . . . . . Explosions 274 | . . . . . 274 Melee 1153 | . . 159 994 . . Ramming . | . . . . . . Kinetic 269 | . 137 . 132 . . Thermal 110 | . 110 . . . . Explosive 274 | . . . . . 274 Electromagnetic . | . . . . . . Impact 1153 | . . 159 994 . . Slashing . | . . . . . . Piercing . | . . . . . . Highest Corruption 7 | . . 5 1 1 7 Average Corruption 3 | . . 4 1 1 1 Corruption Purged . | . . . . . . Corruption Blocked . | . . . . . . Effects 24 | . . 19 . . 5 Message Errors 6 | . . 5 . . 1 Matter Fused 4 | . . 4 . . . Heat Flow Errors 4 | . . 4 . . . Energy Discharges 5 | . . 3 . . 2 Parts Fused 1 | . . 1 . . . Data Loss (minor) 2 | . . 2 . . . Data Loss (major) 2 | . . . . . 2 Overload Shots . | . . . . . . Overflow Damage 164 | . . 54 109 . 1 Projectiles . | . . . . . . Explosions 1 | . . . . . 1 Melee 163 | . . 54 109 . . Knockbacks 4 | . . . 4 . . Impact 4 | . . . 4 . . Kinetic . | . . . . . . Secondary . | . . . . . . Self-Inflicted Damage 81 | . . . . . 81 Shots 3 | . . . . . 3 Rammed . | . . . . . . Targets Rammed . | . . . . . . Kicked . | . . . . . . Crushed . | . . . . . . Highest Temperature 235 | . 54 235 7 . . Average Temperature 56 | . 21 94 5 . . Received Heat Transfer 336 | . 78 18 240 . . Siege Activations . | . . . . . . Robots Corrupted . | . . . . . . Combat Hostiles . | . . . . . . Parts Fried 5 | . . 2 3 . . Impact Corruptions 10 | . . 3 7 . . Robots Melted . | . . . . . . Combat Hostiles . | . . . . . . Parts Melted 1 | . 1 . . . . Heat Transferred 250 | . 250 . . . . Parts Sabotaged . | . . . . . . Parts Stolen . | . . . . . . Parts Stripped . | . . . . . . Power Chain Reactions . | . . . . . . Missiles Intercepted . | . . . . . . Alert | -11 -10 -10 -9 -9 -9 ------- Run | Jun Mat Min Mat Min Exi Peak Influence 426 | . 100 104 426 87 . Initial 87 | . . 39 . 87 . Average 116 | . 63 58 249 87 . Maximum Alert Level 2 | . . . 2 . . Low Security (%) 77 | 100 100 100 22 100 . Level 1 20 | . . . 69 . . Level 2 2 | . . . 8 . . Level 3 . | . . . . . . Level 4 . | . . . . . . Level 5 . | . . . . . . High Security . | . . . . . . Max Security . | . . . . . . Squads Dispatched 3 | . 1 . 2 . . Investigation 3 | . 1 . 2 . . Extermination . | . . . . . . Reinforcement . | . . . . . . Assault . | . . . . . . Garrison . | . . . . . . Intercept . | . . . . . . Searches Triggered . | . . . . . . Construction Impeded . | . . . . . . Haulers Reinforced . | . . . . . . Active Scanning Responses . | . . . . . . Cargo Convoy Interrupts . | . . . . . . Stealth | -11 -10 -10 -9 -9 -9 --------- Run | Jun Mat Min Mat Min Exi Distress Signals 2 | . . . 2 . . Communications Jammed . | . . . . . . Distress Signals . | . . . . . . Times Spotted 39 | . 7 3 20 . 9 Peak Tracking Total 9 | . 4 2 4 . 9 Tactical Retreats 1 | . . 1 . . . Traps | -11 -10 -10 -9 -9 -9 ------- Run | Jun Mat Min Mat Min Exi Traps Triggered 2 | . 1 . 1 . . Indirectly . | . . . . . . Trap Hack Attempts . | . . . . . . Triggered . | . . . . . . Disarmed . | . . . . . . Reprogrammed . | . . . . . . Reused 1 | . . . . . 1 Traps Extracted . | . . . . . . Installed 2 | . . . . . 2 Triggered . | . . . . . . Most Traps Carried 3 | . . 3 3 3 3 Machines | -11 -10 -10 -9 -9 -9 ---------- Run | Jun Mat Min Mat Min Exi Machines Disabled 3 | . . . . . 3 Max in Single Turn 1 | . . . . . 1 Machines Repaired . | . . . . . . Machines Sabotaged . | . . . . . . Overloaded Fab Kills . | . . . . . . Hacking | -11 -10 -10 -9 -9 -9 --------- Run | Jun Mat Min Mat Min Exi Machines Accessed 6 | . 2 1 3 . . Terminals 5 | . 2 . 3 . . Fabricators . | . . . . . . Repair Stations . | . . . . . . Recycling Units . | . . . . . . Scanalyzers . | . . . . . . Garrison Access . | . . . . . . Total Hacks 17 | . 5 1 11 . . Successful 4 | . 1 1 2 . . Failed 13 | . 4 . 9 . . Catastrophic 4 | . . . 4 . . Database Lockouts . | . . . . . . Manual 9 | . . . 8 . 1 Terminals 16 | . 5 . 11 . . Fabricators . | . . . . . . Repair Stations . | . . . . . . Recycling Units . | . . . . . . Scanalyzers . | . . . . . . Garrison Access . | . . . . . . Terminal Hacks 3 | . 1 1 1 . . Robot Analysis 1 | . . . 1 . . Open Door 1 | . . 1 . . . Zone Layout 1 | . 1 . . . . Fabricator Hacks . | . . . . . . Repair Station Hacks . | . . . . . . Recycling Unit Hacks . | . . . . . . Scanalyzer . | . . . . . . Garrison Access Hacks . | . . . . . . Unauthorized Hacks 1 | . . . 1 . . Terminals 1 | . . . 1 . . Assimilate 1 | . . . 1 . . Fabricators . | . . . . . . Repair Stations . | . . . . . . Recycling Units . | . . . . . . Scanalyzers . | . . . . . . Garrison Access . | . . . . . . Data Cores Recovered 1 | . . . 1 . . Used . | . . . . . . Hacking Detections 5 | . 2 . 3 . . Full Trace Events 1 | . . . 1 . . Feedback Events 1 | . . . 1 . . Corruption 1 | . . . 1 . . Feedback Blocked . | . . . . . . Robot Schematics Acquired . | . . . . . . Robots Built . | . . . . . . Authchips . | . . . . . . Time . | . . . . . . Total Robot Build Rating . | . . . . . . Part Schematics Acquired . | . . . . . . Parts Built . | . . . . . . Authchips . | . . . . . . Time . | . . . . . . Total Part Build Rating . | . . . . . . Parts Repaired . | . . . . . . Time . | . . . . . . Parts Recycled . | . . . . . . Recycled Matter . | . . . . . . Retrieved Matter . | . . . . . . Retrieved Components . | . . . . . . Parts Scanalyzed . | . . . . . . Part Schematics Acquired . | . . . . . . Parts Damaged . | . . . . . . Bothacking | -11 -10 -10 -9 -9 -9 ------------ Run | Jun Mat Min Mat Min Exi Used RIF Installer . | . . . . . . Robots Hacked . | . . . . . . Non-combat . | . . . . . . Combat . | . . . . . . Robot Hacks Applied . | . . . . . . Relay Couplers Released . | . . . . . . Fabnet Peak Effective % . | . . . . . . Robots Rewired . | . . . . . . Allies Hacked . | . . . . . . Hacks Repelled . | . . . . . . Allies | -11 -10 -10 -9 -9 -9 -------- Run | Jun Mat Min Mat Min Exi Total Allies 3 | . . 3 . . . Largest Group 3 | . . 3 3 . . Highest-Rated Group 40 | . . 40 40 . . Highest-Rated Ally 16 | . . 16 16 . . Total Orders . | . . . . . . Ally Attacks 30 | . . . 30 . . Total Damage 334 | . . . 334 . . Kills 11 | . . . 11 . . Allies Corrupted . | . . . . . . Allies Melted . | . . . . . . Intel | -11 -10 -10 -9 -9 -9 ------- Run | Jun Mat Min Mat Min Exi Robot Analysis Total 1 | . . . 1 . . Derelict Logs Recovered 1 | . . 1 . . . Drone Launches . | . . . . . . Drone Recoveries . | . . . . . . Exploration | -11 -10 -10 -9 -9 -9 ------------- Run | Jun Mat Min Mat Min Exi Turns Passed 1895 | 48 352 622 480 127 266 Spaces Moved 1366 | 42 279 561 229 55 200 Core 1 | 1 . . . . . Treads 195 | . . . 138 51 6 Legs . | . . . . . . Wheels 1170 | 41 279 561 91 4 194 Hover . | . . . . . . Flight . | . . . . . . Fastest Speed 50 | 50 90 90 105 110 95 Average Speed 115 | 88 90 104 153 230 108 Slowest Speed 245 | 90 90 105 240 240 245 Overloaded Moves . | . . . . . . Propulsion Burnouts . | . . . . . . Robots Hopped . | . . . . . . Cave-ins Triggered 1 | . . . . . 1 Exploration Rate (%) 37 | 3 42 95 27 16 42 Regions Visited 5 Branch Regions 3 Pre-discovered Areas 1 | . . 1 . . . Known Exits Taken . | . . . . . . Unknown Exits Taken 5 | 1 1 1 1 1 . Scrap Searched 1 | . . 1 . . . Spaces Dug . | . . . . . . Terrain Destroyed 20 | . . . . . 20 Melee . | . . . . . . Projectile . | . . . . . . AOE 20 | . . . . . 20 Terrain Rammed . | . . . . . . Walls Destroyed . | . . . . . . Machines Disabled . | . . . . . . Actions | -11 -10 -10 -9 -9 -9 --------- Run | Jun Mat Min Mat Min Exi Total 1588 | 49 348 590 299 55 247 Wait 84 | . 47 13 7 . 17 Move 1361 | 41 278 560 228 54 200 Hop . | . . . . . . Pick Up 29 | 2 6 10 9 . 2 Fast Attach 13 | 6 1 1 2 . 3 Attach 11 | . . 1 5 1 4 Detach 3 | . . . . . 3 Swap 4 | . . 1 . . 3 Drop 11 | . . 1 2 . 8 Fire 41 | . 16 . 20 . 5 Melee 29 | . . 3 26 . . Ram . | . . . . . . Kick . | . . . . . . Crush . | . . . . . . Escape Stasis . | . . . . . . Rewire . | . . . . . . Trap 2 | . . . . . 2 Miscellaneous . | . . . . . . Route ------- -11/Junkyard -10/Materials (discovered 2 exits: *Mat / *Min) -10/Mines (discovered 2 exits: *Mat x2) -9/Materials (discovered 2 exits: [*Mat] / [*Min]) -9/Mines -9/Exiles History --------- Turn | Location | Event 16 | -11/Junkyard | Discovered new exit (range 15) 49 | -11/Junkyard | Entered Materials 191 | -10/Materials | Discovered new exit (range 9) 301 | -10/Materials | Build established: Mutant 374 | -10/Materials | Discovered new exit (range 9) 401 | -10/Materials | Entered Mines 405 | -10/Mines | Met a Derelict who couldn't figure out how to use a Trap Extractor 542 | -10/Mines | Discovered new exit (range 13) 680 | -10/Mines | Found a hidden stash of uninstalled traps 740 | -10/Mines | Assisted by bots powering up and referring to "LRC-V3" 829 | -10/Mines | Discovered new exit (range 9) 1023 | -10/Mines | Entered Materials 1023 | -9/Materials | Accompanied by 3 allies 1023 | -9/Materials | Evolved 2 slots: Propulsion x2 1197 | -9/Materials | Discovered new exit (range 8) 1460 | -9/Materials | Discovered new exit (range 7) 1503 | -9/Materials | Entered Mines 1566 | -9/Mines | Deemed a non-threat by the Exiles lab entrance 1566 | -9/Mines | Discovered new exit (range 5) 1630 | -9/Mines | Entered Exiles 1657 | -9/Exiles | Met 8R-AWN 1677 | -9/Exiles | Met EX-HEX 1707 | -9/Exiles | Met EX-BIN 1723 | -9/Exiles | Aligned with FarCom system 1724 | -9/Exiles | Given EX-Vault access code 1750 | -9/Exiles | Opened EX-Vault 1757 | -9/Exiles | Found Prototype Ballistic Gun 1757 | -9/Exiles | Identified AWS/Gauss 1762 | -9/Exiles | Found Prototype Energy Cannon 1762 | -9/Exiles | Identified Gui. Plasma Cannon 1766 | -9/Exiles | Found Prototype Special Weapon 1766 | -9/Exiles | Identified Field Lobotomy Kit 1794 | -9/Exiles | Warned to stay clear of 0b10 Research branches 1845 | -9/Exiles | Warned about trapping Exiles lab 1847 | -9/Exiles | Attacked by the Exiles 1853 | -9/Exiles | Core integrity fell below 50% 1873 | -9/Exiles | Crushed by falling debris 1873 | -9/Exiles | Core integrity fell below 20% 1896 | -9/Exiles | Destroyed by 8R-AWN with 8R-AWN's Boregun Last Messages --------------- 01885_ HV Slug penetrates Earth. 01887_ Penetrated by HV Slug. 01887_ HV Slug penetrates Earth. 01887_ Penetrated by HV Slug. 01887_ Lgt. Angular Momentum Engine destroyed. 01887_ HV Slug penetrates Earth. 01889_ Penetrated by HV Slug. 01889_ Wheel destroyed. 01889_ HV Slug penetrates Earth. 01890_ Earth collapses. 01891_ Penetrated by HV Slug. 01891_ HV Slug penetrates Wall. 01891_ Penetrated by HV Slug. 01891_ HV Slug penetrates Wall. 01894_ HV Slug penetrates Earth. 01894_ Penetrated by HV Slug. 01894_ HV Slug penetrates Machine. 01896_ Penetrated by HV Slug. 01896_ HV Slug penetrates Wall. 01896_ Penetrated by HV Slug. Map ----- +----------------------------------------------------+ | """#???????????????????????????????????????????? | | """#???????????????????????????????????????????? | | """#???????????????????????????????????????????? | | """"???????????????????????????????????????????? | | """#???????????????????????????????????????????? | | " """"???????????????????????????????????????????? | | " #???????????????????????????????????????????? | | """""#???????????????????????????????????????????? | | ######???????????????????????????????????????????? | | ?????????????????????????????????????????????????? | | ?????????????????????????????????????????????????? | | ?????????????????????????????????????????????????? | | ?###########?????????????????????????????????????? | | ##"""""""""##????????????????????????????????????? | | " """ """"##?????????????????????????????????# | | "" " #????????????????????????????????# | | " """#???????????????????????????????# | | " "#?????##?#?######???????????????# | | " "##????# # ## #??????????????## | | ""####### # #?????????????## | | """#? # ##????????????# | | "#?#### ###????????### # | | ### g ########## # | | ### #""""## #? | | " #% * ## | | a@## * # | | #### # | | % " #?#"""""#### | | ""#?#######??#### * | | # # ##?????????????##### | | ### ###??????????????????### | | " ##?#????????????????????????### | | """ ""#?????????????????????????????### | | " ""#" "##??????????????????????????????#" | | "" """##"""" ""##???????????????????????????????## | | #""""#?#########?????????????????????????????????? | | #####????????????????????????????????????????????? | | ?????????????????????????????????????????????????? | | ?????????????????????????????????????????????????? | | ?????????????????????????????????????????????????? | | ?????????????????????????????????????????????????? | | ?????????????????????????????????????????????????? | | ?????????????????????????????????????????????????? | | ?????????????????????????????????????????????????? | | ?????????????????????????????????????????????????? | | ?????????????????????????????????????????????????? | | ?????????????????????????????????????????????????? | | ?????????????????????????????????????????????????? | | ?????????????????????????????????????????????????? | | ?????????????????????????????????????????????????? | +----------------------------------------------------+ Best States ------------- Heat Dissipation 28 Energy Generation 18 Energy Capacity 250 Matter Stores 300 Matter Capacity 300 Sight Range 16 Terrain Scan Density 10 Armor Coverage 150 Evasion (%) 42 Melee Accuracy 5 Recoil Reduction 3 Item Schematics ----------------- None Robot Schematics ------------------ None Fabricated ------------ Nothing Alien Tech Used ----------------- None Achievements -------------- None Challenges ------------ None Game ------ Seed CarbideDamperWell Manual? 0 Play Time 00:18:41 Cumulative 396.5 hours Start 2023.03.12 @ 19:42:50 End 2023.03.12 @ 20:19:04 Sessions 1 Manual Loads 0 Difficulty Rogue Special Mode None Game No. 187 Rogue 183 Adventurer 0 Explorer 4 Win Type - Total 23 Types 7/1/2/5/1/2/3/1/1 Lore% 85 Gallery% 88 Achievement% 79 Wizard Run 0 Options --------- ASCII 0 Keyboard 0 Movement Mouse Keybinds 0 Fullscreen 1 Font 18/SmallcapsGlow Map View 76x50 Tactical HUD 1 Map Filters NONE Filters NONE Steam 1 RUN: 26775202-cf3d-4b7f-97ed-f4ff7c945bbc